[Event "Titled Tuesday Blitz March 29 Early 2022"]
[White "Rengifo Blancas, Renzo Jhonathan"]
[Black "Gaehwiler, Gabriel"]
[WhiteFideId "3807185"]
[BlackFideId "1314530"]
[WhiteElo "2058"]
[BlackElo "2383"]
[Result "0-1"]
[Round "02"]
[TimeControl "180+1"]
[Date "2022.03.30"]
[WhiteClock "0:00:01"]
[BlackClock "0:00:19"]

1. d4 {[%clk 0:03:00]}  Nf6 {[%clk 0:02:59]} 2. c4 {[%clk 0:03:01]}  g6 {[%clk 0:03:00]} 3. Nc3 {[%clk 0:03:01]}  Bg7 {[%clk 0:03:00]} 4. Nf3 {[%clk 0:03:00]}  O-O {[%clk 0:03:01]} 5. g3 {[%clk 0:03:01]}  d6 {[%clk 0:03:01]} 6. Bg2 {[%clk 0:03:02]}  c6 {[%clk 0:03:02]} 7. O-O {[%clk 0:03:02]}  Bf5 {[%clk 0:03:03]} 8. d5 {[%clk 0:03:00]}  Ne4 {[%clk 0:02:52]} 9. Nd4 {[%clk 0:02:57]}  Nxc3 {[%clk 0:02:47]} 10. bxc3 {[%clk 0:02:57]}  Bd7 {[%clk 0:02:47]} 11. Rb1 {[%clk 0:02:50]}  Qc8 {[%clk 0:02:47]} 12. Bg5 {[%clk 0:02:47]}  Re8 {[%clk 0:02:46]} 13. e4 {[%clk 0:02:45]}  cxd5 {[%clk 0:02:41]} 14. cxd5 {[%clk 0:02:45]}  Qxc3 {[%clk 0:02:40]} 15. Nb5 {[%clk 0:02:44]}  Bxb5 {[%clk 0:02:16]} 16. Rxb5 {[%clk 0:02:45]}  b6 {[%clk 0:02:16]} 17. Rb3 {[%clk 0:02:40]}  Qc4 {[%clk 0:02:14]} 18. Qc1 {[%clk 0:02:37]}  Qxc1 {[%clk 0:02:11]} 19. Rxc1 {[%clk 0:02:37]}  Nd7 {[%clk 0:02:10]} 20. Rc7 {[%clk 0:02:36]}  Nc5 {[%clk 0:02:10]} 21. Ra3 {[%clk 0:02:36]}  a5 {[%clk 0:01:52]} 22. Rxe7 {[%clk 0:02:12]}  Rxe7 {[%clk 0:01:25]} 23. Bxe7 {[%clk 0:02:12]}  Bf8 {[%clk 0:01:26]} 24. Bf6 {[%clk 0:02:08]}  Bg7 {[%clk 0:01:25]} 25. Be7 {[%clk 0:02:08]}  Bf8 {[%clk 0:01:25]} 26. Bf6 {[%clk 0:02:07]}  Re8 {[%clk 0:01:24]} 27. f3 {[%clk 0:02:02]}  Bg7 {[%clk 0:01:24]} 28. Bxg7 {[%clk 0:01:55]}  Kxg7 {[%clk 0:01:25]} 29. g4 {[%clk 0:01:20]}  a4 {[%clk 0:01:18]} 30. Rc3 {[%clk 0:01:15]}  f5 {[%clk 0:01:12]} 31. gxf5 {[%clk 0:01:14]}  gxf5 {[%clk 0:01:13]} 32. Rc4 {[%clk 0:01:09]}  fxe4 {[%clk 0:01:07]} 33. fxe4 {[%clk 0:01:08]}  Kf6 {[%clk 0:00:56]} 34. Rb4 {[%clk 0:01:08]}  Rb8 {[%clk 0:00:54]} 35. a3 {[%clk 0:00:37]}  Ke5 {[%clk 0:00:52]} 36. Bf1 {[%clk 0:00:31]}  Rg8+ {[%clk 0:00:48]} 37. Bg2 {[%clk 0:00:29]}  Rf8 {[%clk 0:00:45]} 38. Rxb6 {[%clk 0:00:28]}  Rf4 {[%clk 0:00:39]} 39. Rb4 {[%clk 0:00:26]}  Rg4 {[%clk 0:00:39]} 40. Kf1 {[%clk 0:00:25]}  Rh4 {[%clk 0:00:38]} 41. Kg1 {[%clk 0:00:25]}  Rf4 {[%clk 0:00:37]} 42. h3 {[%clk 0:00:23]}  Rf8 {[%clk 0:00:37]} 43. Kh2 {[%clk 0:00:22]}  Rf2 {[%clk 0:00:35]} 44. Kg1 {[%clk 0:00:16]}  Ra2 {[%clk 0:00:35]} 45. Rb8 {[%clk 0:00:14]}  Rxa3 {[%clk 0:00:35]} 46. Re8+ {[%clk 0:00:14]}  Kd4 {[%clk 0:00:31]} 47. Rd8 {[%clk 0:00:14]}  Nb7 {[%clk 0:00:26]} 48. Rd7 {[%clk 0:00:14]}  Rb3 {[%clk 0:00:26]} 49. e5 {[%clk 0:00:04]}  a3 {[%clk 0:00:19]} 50. e6 {[%clk 0:00:01]}  a2 {[%clk 0:00:19]} 0-1


[Site "https://www.chess.com"]

[Event "Titled Tuesday Blitz March 29 Early 2022"]
[White "Sahil, Tickoo"]
[Black "Demin, Vladimir"]
[WhiteFideId "5019710"]
[BlackFideId "4167457"]
[WhiteElo "2099"]
[BlackElo "2499"]
[Result "0-1"]
[Round "02"]
[TimeControl "180+1"]
[Date "2022.03.30"]
[WhiteClock "0:00:37"]
[BlackClock "0:01:58"]

1. d4 {[%clk 0:03:00]}  Nf6 {[%clk 0:02:59]} 2. Bf4 {[%clk 0:03:00]}  d5 {[%clk 0:02:59]} 3. e3 {[%clk 0:03:00]}  c5 {[%clk 0:03:00]} 4. c3 {[%clk 0:03:00]}  Nc6 {[%clk 0:03:00]} 5. Nd2 {[%clk 0:03:00]}  Qb6 {[%clk 0:03:01]} 6. Qc2 {[%clk 0:02:57]}  cxd4 {[%clk 0:03:00]} 7. exd4 {[%clk 0:02:55]}  Bg4 {[%clk 0:02:58]} 8. Ngf3 {[%clk 0:02:53]}  e6 {[%clk 0:02:58]} 9. Bd3 {[%clk 0:02:52]}  Rc8 {[%clk 0:02:58]} 10. a3 {[%clk 0:02:49]}  Be7 {[%clk 0:02:56]} 11. O-O {[%clk 0:02:48]}  O-O {[%clk 0:02:55]} 12. Rfe1 {[%clk 0:02:46]}  Bh5 {[%clk 0:02:54]} 13. h3 {[%clk 0:02:27]}  Bg6 {[%clk 0:02:54]} 14. Bxg6 {[%clk 0:02:26]}  hxg6 {[%clk 0:02:55]} 15. Rab1 {[%clk 0:02:24]}  Na5 {[%clk 0:02:45]} 16. Ne5 {[%clk 0:02:21]}  Bd6 {[%clk 0:02:44]} 17. Bg3 {[%clk 0:02:17]}  Bxe5 {[%clk 0:02:41]} 18. Bxe5 {[%clk 0:02:15]}  Nd7 {[%clk 0:02:42]} 19. Bg3 {[%clk 0:02:14]}  Qxd4 {[%clk 0:02:35]} 20. Nf3 {[%clk 0:01:52]}  Qb6 {[%clk 0:02:33]} 21. Qe2 {[%clk 0:01:39]}  Rc4 {[%clk 0:02:22]} 22. h4 {[%clk 0:01:34]}  Re4 {[%clk 0:02:17]} 23. Qc2 {[%clk 0:01:30]}  Rg4 {[%clk 0:02:13]} 24. Kh2 {[%clk 0:01:03]}  Rc8 {[%clk 0:02:11]} 25. Qe2 {[%clk 0:01:03]}  Re4 {[%clk 0:02:09]} 26. Qf1 {[%clk 0:00:50]}  Rxe1 {[%clk 0:02:07]} 27. Qxe1 {[%clk 0:00:48]}  Rc4 {[%clk 0:02:03]} 28. Ne5 {[%clk 0:00:44]}  Re4 {[%clk 0:01:58]} 29. Nxd7 {[%clk 0:00:38]}  Rxe1 {[%clk 0:01:58]} 30. Nxb6 {[%clk 0:00:37]}  Rxb1 {[%clk 0:01:58]} 0-1


[Site "https://www.chess.com"]

[Event "Titled Tuesday Blitz March 29 Early 2022"]
[White "San, Thit Lwin"]
[Black "Guseva, Marina"]
[WhiteFideId "13001272"]
[BlackFideId "4149351"]
[WhiteElo "2232"]
[BlackElo "2160"]
[Result "0-1"]
[Round "02"]
[TimeControl "180+1"]
[Date "2022.03.30"]
[WhiteClock "0:00:45"]
[BlackClock "0:00:08"]

1. Nf3 {[%clk 0:02:59]}  d5 {[%clk 0:02:58]} 2. c4 {[%clk 0:03:00]}  c6 {[%clk 0:02:57]} 3. d4 {[%clk 0:03:01]}  Nf6 {[%clk 0:02:56]} 4. Nc3 {[%clk 0:03:01]}  a6 {[%clk 0:02:55]} 5. cxd5 {[%clk 0:02:59]}  cxd5 {[%clk 0:02:55]} 6. Bf4 {[%clk 0:02:59]}  Nc6 {[%clk 0:02:54]} 7. e3 {[%clk 0:02:59]}  Bf5 {[%clk 0:02:41]} 8. Rc1 {[%clk 0:02:58]}  e6 {[%clk 0:02:32]} 9. Bd3 {[%clk 0:02:58]}  Bxd3 {[%clk 0:02:30]} 10. Qxd3 {[%clk 0:02:58]}  Bd6 {[%clk 0:02:25]} 11. Bg5 {[%clk 0:02:56]}  h6 {[%clk 0:02:24]} 12. Bh4 {[%clk 0:02:56]}  Rc8 {[%clk 0:02:19]} 13. O-O {[%clk 0:02:56]}  Be7 {[%clk 0:02:09]} 14. Na4 {[%clk 0:02:45]}  O-O {[%clk 0:02:03]} 15. Nc5 {[%clk 0:02:43]}  Bxc5 {[%clk 0:01:32]} 16. Rxc5 {[%clk 0:02:42]}  g5 {[%clk 0:01:30]} 17. Bg3 {[%clk 0:02:39]}  Ne4 {[%clk 0:01:29]} 18. Rcc1 {[%clk 0:02:35]}  f6 {[%clk 0:01:25]} 19. Nd2 {[%clk 0:02:29]}  Nb4 {[%clk 0:01:08]} 20. Qb1 {[%clk 0:02:19]}  Rxc1 {[%clk 0:01:02]} 21. Rxc1 {[%clk 0:02:18]}  f5 {[%clk 0:00:35]} 22. Nxe4 {[%clk 0:02:07]}  dxe4 {[%clk 0:00:34]} 23. Rc7 {[%clk 0:01:51]}  Rf7 {[%clk 0:00:32]} 24. Rxf7 {[%clk 0:01:30]}  Kxf7 {[%clk 0:00:32]} 25. f3 {[%clk 0:01:31]}  Qd5 {[%clk 0:00:28]} 26. fxe4 {[%clk 0:01:29]}  Qxe4 {[%clk 0:00:19]} 27. Qxe4 {[%clk 0:01:20]}  fxe4 {[%clk 0:00:19]} 28. a3 {[%clk 0:01:17]}  Nd3 {[%clk 0:00:13]} 29. b4 {[%clk 0:01:13]}  Nb2 {[%clk 0:00:12]} 30. Kf1 {[%clk 0:01:08]}  b5 {[%clk 0:00:12]} 31. Ke2 {[%clk 0:01:07]}  Nc4 {[%clk 0:00:12]} 32. h4 {[%clk 0:00:55]}  Nxa3 {[%clk 0:00:10]} 33. hxg5 {[%clk 0:00:55]}  hxg5 {[%clk 0:00:10]} 34. Be5 {[%clk 0:00:55]}  Nc4 {[%clk 0:00:09]} 35. Bc7 {[%clk 0:00:54]}  g4 {[%clk 0:00:05]} 36. Kf2 {[%clk 0:00:53]}  Kg6 {[%clk 0:00:04]} 37. Bf4 {[%clk 0:00:50]}  Kf5 {[%clk 0:00:04]} 38. Ke2 {[%clk 0:00:44]}  a5 {[%clk 0:00:03]} 39. bxa5 {[%clk 0:00:44]}  Nxa5 {[%clk 0:00:03]} 40. Kd2 {[%clk 0:00:39]}  Nc4+ {[%clk 0:00:03]} 41. Kc3 {[%clk 0:00:38]}  e5 {[%clk 0:00:04]} 42. dxe5 {[%clk 0:00:38]}  Nxe5 {[%clk 0:00:04]} 43. Kb4 {[%clk 0:00:36]}  Nd3+ {[%clk 0:00:04]} 44. Kxb5 {[%clk 0:00:36]}  Nxf4 {[%clk 0:00:05]} 45. exf4 {[%clk 0:00:36]}  Kxf4 {[%clk 0:00:05]} 46. Kc4 {[%clk 0:00:37]}  Kg3 {[%clk 0:00:05]} 47. Kd4 {[%clk 0:00:38]}  Kxg2 {[%clk 0:00:05]} 48. Kxe4 {[%clk 0:00:38]}  g3 {[%clk 0:00:05]} 49. Kf4 {[%clk 0:00:39]}  Kh2 {[%clk 0:00:06]} 50. Kg4 {[%clk 0:00:40]}  g2 {[%clk 0:00:06]} 51. Kf3 {[%clk 0:00:41]}  g1=Q {[%clk 0:00:07]} 52. Ke4 {[%clk 0:00:42]}  Qc5 {[%clk 0:00:06]} 53. Kd3 {[%clk 0:00:42]}  Qb4 {[%clk 0:00:06]} 54. Ke3 {[%clk 0:00:43]}  Qc4 {[%clk 0:00:07]} 55. Kf3 {[%clk 0:00:43]}  Kh3 {[%clk 0:00:07]} 56. Ke3 {[%clk 0:00:43]}  Kg4 {[%clk 0:00:07]} 57. Kd2 {[%clk 0:00:43]}  Qb3 {[%clk 0:00:08]} 58. Ke2 {[%clk 0:00:44]}  Qc3 {[%clk 0:00:07]} 59. Kf2 {[%clk 0:00:44]}  Qd3 {[%clk 0:00:08]} 60. Kg2 {[%clk 0:00:44]}  Qe2+ {[%clk 0:00:08]} 61. Kg1 {[%clk 0:00:45]}  Kg3 {[%clk 0:00:08]} 0-1


[Site "https://www.chess.com"]

[Event "Titled Tuesday Blitz March 29 Early 2022"]
[White "Sanal, Vahap"]
[Black "Kozlov, Gennady"]
[WhiteFideId "6300545"]
[BlackFideId "4191668"]
[WhiteElo "2603"]
[BlackElo "2392"]
[Result "1-0"]
[Round "02"]
[TimeControl "180+1"]
[Date "2022.03.29"]
[WhiteClock "0:00:11"]
[BlackClock "0:00:17"]

1. e4 {[%clk 0:03:00]}  e6 {[%clk 0:02:59]} 2. d4 {[%clk 0:03:00]}  d5 {[%clk 0:02:59]} 3. Nc3 {[%clk 0:03:00]}  dxe4 {[%clk 0:02:59]} 4. Nxe4 {[%clk 0:03:00]}  Bd7 {[%clk 0:03:00]} 5. c4 {[%clk 0:02:59]}  Bc6 {[%clk 0:03:00]} 6. Nc3 {[%clk 0:03:00]}  Nf6 {[%clk 0:02:58]} 7. Nf3 {[%clk 0:03:00]}  Bb4 {[%clk 0:02:57]} 8. Be3 {[%clk 0:03:00]}  O-O {[%clk 0:02:56]} 9. Be2 {[%clk 0:02:56]}  b6 {[%clk 0:02:55]} 10. Ne5 {[%clk 0:02:52]}  Bb7 {[%clk 0:02:53]} 11. Bf3 {[%clk 0:02:48]}  c6 {[%clk 0:02:46]} 12. O-O {[%clk 0:02:48]}  Bd6 {[%clk 0:02:42]} 13. Bg5 {[%clk 0:02:41]}  h6 {[%clk 0:02:34]} 14. Bh4 {[%clk 0:02:40]}  Bxe5 {[%clk 0:02:30]} 15. dxe5 {[%clk 0:02:39]}  Qxd1 {[%clk 0:02:31]} 16. Raxd1 {[%clk 0:02:33]}  Nfd7 {[%clk 0:02:32]} 17. Rfe1 {[%clk 0:02:30]}  Rc8 {[%clk 0:02:19]} 18. Kf1 {[%clk 0:02:07]}  Nf8 {[%clk 0:02:14]} 19. Ne4 {[%clk 0:02:07]}  Ba6 {[%clk 0:02:13]} 20. Nd6 {[%clk 0:02:05]}  Rc7 {[%clk 0:02:14]} 21. b4 {[%clk 0:02:05]}  Ng6 {[%clk 0:02:00]} 22. Bg3 {[%clk 0:02:05]}  h5 {[%clk 0:01:41]} 23. h4 {[%clk 0:01:58]}  Bb7 {[%clk 0:01:36]} 24. Nxb7 {[%clk 0:01:54]}  Rxb7 {[%clk 0:01:37]} 25. Rd8+ {[%clk 0:01:54]}  Kh7 {[%clk 0:01:37]} 26. b5 {[%clk 0:01:29]}  Rc7 {[%clk 0:01:37]} 27. Bxh5 {[%clk 0:01:15]}  a6 {[%clk 0:01:28]} 28. Bf3 {[%clk 0:01:13]}  axb5 {[%clk 0:01:26]} 29. cxb5 {[%clk 0:01:13]}  Ne7 {[%clk 0:01:19]} 30. Be4+ {[%clk 0:01:12]}  g6 {[%clk 0:01:18]} 31. Bf4 {[%clk 0:01:07]}  Nd5 {[%clk 0:01:17]} 32. Bg5 {[%clk 0:01:05]}  Rca7 {[%clk 0:01:14]} 33. Bxd5 {[%clk 0:01:05]}  cxd5 {[%clk 0:01:13]} 34. Rc1 {[%clk 0:00:39]}  Nd7 {[%clk 0:01:13]} 35. Rxa8 {[%clk 0:00:39]}  Rxa8 {[%clk 0:01:13]} 36. Rc7 {[%clk 0:00:37]}  Nxe5 {[%clk 0:01:12]} 37. f4 {[%clk 0:00:35]}  Nc4 {[%clk 0:01:08]} 38. Rxf7+ {[%clk 0:00:35]}  Kg8 {[%clk 0:01:09]} 39. Rf6 {[%clk 0:00:35]}  Rxa2 {[%clk 0:01:05]} 40. Rxg6+ {[%clk 0:00:36]}  Kf7 {[%clk 0:01:05]} 41. Rf6+ {[%clk 0:00:36]}  Ke7 {[%clk 0:01:04]} 42. h5 {[%clk 0:00:35]}  Ne3+ {[%clk 0:01:02]} 43. Kg1 {[%clk 0:00:35]}  d4 {[%clk 0:00:45]} 44. h6 {[%clk 0:00:30]}  d3 {[%clk 0:00:37]} 45. h7 {[%clk 0:00:28]}  d2 {[%clk 0:00:37]} 46. Rf8+ {[%clk 0:00:28]}  Kxf8 {[%clk 0:00:31]} 47. h8=Q+ {[%clk 0:00:28]}  Kf7 {[%clk 0:00:32]} 48. Qf6+ {[%clk 0:00:28]}  Kg8 {[%clk 0:00:32]} 49. Qxe6+ {[%clk 0:00:27]}  Kg7 {[%clk 0:00:31]} 50. Bf6+ {[%clk 0:00:23]}  Kg6 {[%clk 0:00:19]} 51. Bc3+ {[%clk 0:00:20]}  Kh5 {[%clk 0:00:19]} 52. Bxd2 {[%clk 0:00:15]}  Ra1+ {[%clk 0:00:19]} 53. Kf2 {[%clk 0:00:14]}  Ng4+ {[%clk 0:00:17]} 54. Kf3 {[%clk 0:00:13]}  Rf1+ {[%clk 0:00:16]} 55. Ke2 {[%clk 0:00:13]}  Rf2+ {[%clk 0:00:16]} 56. Ke1 {[%clk 0:00:13]}  Rxg2 {[%clk 0:00:16]} 57. Qxb6 {[%clk 0:00:10]}  Kh4 {[%clk 0:00:15]} 58. Kd1 {[%clk 0:00:09]}  Nf2+ {[%clk 0:00:15]} 59. Qxf2+ {[%clk 0:00:09]}  Rxf2 {[%clk 0:00:15]} 60. Be1 {[%clk 0:00:10]}  Kg4 {[%clk 0:00:16]} 61. Bxf2 {[%clk 0:00:10]}  Kxf4 {[%clk 0:00:17]} 62. b6 {[%clk 0:00:11]} 1-0


[Site "https://www.chess.com"]

[Event "Titled Tuesday Blitz March 29 Early 2022"]
[White "Sanchez, Robert"]
[Black "Cremisi, Daniel"]
[WhiteFideId "2034360"]
[BlackFideId "2089882"]
[WhiteElo "2252"]
[BlackElo "2172"]
[Result "0-1"]
[Round "02"]
[TimeControl "180+1"]
[Date "2022.03.30"]
[WhiteClock "0:00:03"]
[BlackClock "0:00:14"]

1. e4 {[%clk 0:03:00]}  e6 {[%clk 0:02:58]} 2. d4 {[%clk 0:03:00]}  d5 {[%clk 0:02:58]} 3. Nd2 {[%clk 0:03:01]}  a6 {[%clk 0:02:58]} 4. Ngf3 {[%clk 0:03:00]}  Nf6 {[%clk 0:02:58]} 5. e5 {[%clk 0:03:00]}  Nfd7 {[%clk 0:02:58]} 6. Bd3 {[%clk 0:03:01]}  c5 {[%clk 0:02:58]} 7. c3 {[%clk 0:03:01]}  Nc6 {[%clk 0:02:59]} 8. O-O {[%clk 0:03:01]}  g5 {[%clk 0:02:59]} 9. c4 {[%clk 0:02:39]}  cxd4 {[%clk 0:02:50]} 10. cxd5 {[%clk 0:02:39]}  exd5 {[%clk 0:02:50]} 11. Nb3 {[%clk 0:02:28]}  g4 {[%clk 0:02:49]} 12. Nfxd4 {[%clk 0:02:28]}  Ncxe5 {[%clk 0:02:48]} 13. Re1 {[%clk 0:02:27]}  Qf6 {[%clk 0:02:46]} 14. f4 {[%clk 0:02:14]}  gxf3 {[%clk 0:02:46]} 15. Nxf3 {[%clk 0:02:15]}  Bd6 {[%clk 0:02:45]} 16. Bg5 {[%clk 0:02:09]}  Qg7 {[%clk 0:02:44]} 17. Nbd4 {[%clk 0:02:08]}  O-O {[%clk 0:02:44]} 18. Qd2 {[%clk 0:01:56]}  Nxf3+ {[%clk 0:02:43]} 19. Nxf3 {[%clk 0:01:56]}  Ne5 {[%clk 0:02:19]} 20. Nxe5 {[%clk 0:01:51]}  Bxe5 {[%clk 0:02:19]} 21. Bh6 {[%clk 0:01:51]}  Bd4+ {[%clk 0:02:19]} 22. Kh1 {[%clk 0:01:50]}  Qf6 {[%clk 0:02:19]} 23. Bxf8 {[%clk 0:01:49]}  Kxf8 {[%clk 0:02:19]} 24. Bxh7 {[%clk 0:01:25]}  Bxb2 {[%clk 0:02:16]} 25. Rf1 {[%clk 0:01:13]}  Bxa1 {[%clk 0:02:14]} 26. Rxf6 {[%clk 0:01:12]}  Bxf6 {[%clk 0:02:15]} 27. Qxd5 {[%clk 0:01:11]}  Be6 {[%clk 0:02:14]} 28. Qxb7 {[%clk 0:01:06]}  Rd8 {[%clk 0:02:14]} 29. Kg1 {[%clk 0:00:59]}  Rd1+ {[%clk 0:02:00]} 30. Kf2 {[%clk 0:00:59]}  Rd2+ {[%clk 0:02:00]} 31. Ke1 {[%clk 0:00:48]}  Rxa2 {[%clk 0:01:57]} 32. Be4 {[%clk 0:00:40]}  Bc3+ {[%clk 0:01:53]} 33. Kd1 {[%clk 0:00:29]}  Rb2 {[%clk 0:01:49]} 34. Qxa6 {[%clk 0:00:21]}  Bg4+ {[%clk 0:01:21]} 35. Kc1 {[%clk 0:00:21]}  Kg7 {[%clk 0:01:17]} 36. h3 {[%clk 0:00:20]}  Be6 {[%clk 0:01:14]} 37. Qd3 {[%clk 0:00:16]}  Be5 {[%clk 0:01:12]} 38. h4 {[%clk 0:00:15]}  Ra2 {[%clk 0:01:08]} 39. h5 {[%clk 0:00:14]}  Ra1+ {[%clk 0:01:07]} 40. Kd2 {[%clk 0:00:15]}  Ra2+ {[%clk 0:00:59]} 41. Ke3 {[%clk 0:00:12]}  Rb2 {[%clk 0:00:57]} 42. Bd5 {[%clk 0:00:10]}  Bg4 {[%clk 0:00:49]} 43. h6+ {[%clk 0:00:07]}  Kxh6 {[%clk 0:00:48]} 44. Bxf7 {[%clk 0:00:07]}  Kg5 {[%clk 0:00:13]} 45. Qg6+ {[%clk 0:00:03]}  Kh4 {[%clk 0:00:14]} 0-1


[Site "https://www.chess.com"]

[Event "Titled Tuesday Blitz March 29 Early 2022"]
[White "Secer, Ata"]
[Black "Bortnyk, Olexandr"]
[WhiteFideId "6303293"]
[BlackFideId "14120828"]
[WhiteElo "2282"]
[BlackElo "2723"]
[Result "0-1"]
[Round "02"]
[TimeControl "180+1"]
[Date "2022.03.30"]
[WhiteClock "0:01:53"]
[BlackClock "0:02:12"]

1. e4 {[%clk 0:02:56]}  d6 {[%clk 0:02:57]} 2. d4 {[%clk 0:02:56]}  Nf6 {[%clk 0:02:57]} 3. Nc3 {[%clk 0:02:57]}  e5 {[%clk 0:02:57]} 4. Nf3 {[%clk 0:02:56]}  Nbd7 {[%clk 0:02:57]} 5. Bc4 {[%clk 0:02:56]}  Be7 {[%clk 0:02:57]} 6. O-O {[%clk 0:02:54]}  c6 {[%clk 0:02:58]} 7. a4 {[%clk 0:02:53]}  h6 {[%clk 0:02:57]} 8. Re1 {[%clk 0:02:53]}  Qc7 {[%clk 0:02:57]} 9. b3 {[%clk 0:02:47]}  g5 {[%clk 0:02:55]} 10. Ba3 {[%clk 0:02:38]}  Nf8 {[%clk 0:02:54]} 11. dxe5 {[%clk 0:02:31]}  dxe5 {[%clk 0:02:55]} 12. Bxe7 {[%clk 0:02:31]}  Qxe7 {[%clk 0:02:36]} 13. Qd3 {[%clk 0:02:27]}  Ng6 {[%clk 0:02:33]} 14. Rad1 {[%clk 0:02:19]}  Nf4 {[%clk 0:02:31]} 15. Qd6 {[%clk 0:02:19]}  Bg4 {[%clk 0:02:21]} 16. Re3 {[%clk 0:02:08]}  Bxf3 {[%clk 0:02:18]} 17. Re2 {[%clk 0:01:53]}  Qxd6 {[%clk 0:02:12]} 0-1


[Site "https://www.chess.com"]

[Event "Titled Tuesday Blitz March 29 Early 2022"]
[White "Shuvalov, Evgenij"]
[Black "Molina, Roberto Junio Brito"]
[WhiteFideId "4187237"]
[BlackFideId "2109450"]
[WhiteElo "2151"]
[BlackElo "2432"]
[Result "0-1"]
[Round "02"]
[TimeControl "180+1"]
[Date "2022.03.30"]
[WhiteClock "0:00:01"]
[BlackClock "0:00:33"]

1. Nf3 {[%clk 0:00:31]}  d5 {[%clk 0:02:56]} 2. c4 {[%clk 0:00:30]}  c6 {[%clk 0:02:57]} 3. g3 {[%clk 0:00:30]}  e6 {[%clk 0:02:57]} 4. Bg2 {[%clk 0:00:31]}  dxc4 {[%clk 0:02:58]} 5. O-O {[%clk 0:00:31]}  b5 {[%clk 0:02:59]} 6. d3 {[%clk 0:00:30]}  cxd3 {[%clk 0:02:58]} 7. Ne5 {[%clk 0:00:30]}  Bb7 {[%clk 0:02:55]} 8. Nxd3 {[%clk 0:00:30]}  Nd7 {[%clk 0:02:55]} 9. a4 {[%clk 0:00:30]}  a6 {[%clk 0:02:55]} 10. Be3 {[%clk 0:00:28]}  Qb8 {[%clk 0:02:48]} 11. Nd2 {[%clk 0:00:28]}  c5 {[%clk 0:02:48]} 12. axb5 {[%clk 0:00:27]}  Bxg2 {[%clk 0:02:46]} 13. Kxg2 {[%clk 0:00:26]}  axb5 {[%clk 0:02:47]} 14. f3 {[%clk 0:00:23]}  Ngf6 {[%clk 0:02:46]} 15. b4 {[%clk 0:00:19]}  c4 {[%clk 0:02:46]} 16. Nf4 {[%clk 0:00:19]}  Rxa1 {[%clk 0:02:36]} 17. Qxa1 {[%clk 0:00:20]}  Bd6 {[%clk 0:02:37]} 18. Rb1 {[%clk 0:00:17]}  O-O {[%clk 0:02:36]} 19. Qc3 {[%clk 0:00:16]}  Rd8 {[%clk 0:02:31]} 20. g4 {[%clk 0:00:16]}  e5 {[%clk 0:02:30]} 21. Nh3 {[%clk 0:00:15]}  Nd5 {[%clk 0:02:30]} 22. Qa3 {[%clk 0:00:14]}  N7f6 {[%clk 0:02:26]} 23. Bf2 {[%clk 0:00:13]}  e4 {[%clk 0:02:24]} 24. g5 {[%clk 0:00:13]}  exf3+ {[%clk 0:02:23]} 25. Qxf3 {[%clk 0:00:12]}  c3 {[%clk 0:02:17]} 26. Nb3 {[%clk 0:00:11]}  Bxb4 {[%clk 0:02:00]} 27. gxf6 {[%clk 0:00:11]}  Nxf6 {[%clk 0:02:01]} 28. Rg1 {[%clk 0:00:11]}  c2 {[%clk 0:01:55]} 29. Kh1 {[%clk 0:00:11]}  Rd1 {[%clk 0:01:51]} 30. Be1 {[%clk 0:00:10]}  Rxe1 {[%clk 0:01:48]} 31. Rxe1 {[%clk 0:00:08]}  Bxe1 {[%clk 0:01:48]} 32. Qd3 {[%clk 0:00:08]}  Qc8 {[%clk 0:01:42]} 33. Nc1 {[%clk 0:00:08]}  b4 {[%clk 0:01:37]} 34. Nf4 {[%clk 0:00:07]}  h6 {[%clk 0:01:35]} 35. Ng2 {[%clk 0:00:07]}  Bf2 {[%clk 0:01:28]} 36. e3 {[%clk 0:00:07]}  Qc6 {[%clk 0:01:09]} 37. h3 {[%clk 0:00:06]}  Bg3 {[%clk 0:01:06]} 38. Qd2 {[%clk 0:00:04]}  Bd6 {[%clk 0:01:04]} 39. Nb3 {[%clk 0:00:03]}  Ne4 {[%clk 0:00:55]} 40. Qc1 {[%clk 0:00:04]}  Qc3 {[%clk 0:00:53]} 41. Nd4 {[%clk 0:00:04]}  b3 {[%clk 0:00:51]} 42. Nxb3 {[%clk 0:00:04]}  Qxb3 {[%clk 0:00:51]} 43. Qf1 {[%clk 0:00:04]}  Qb1 {[%clk 0:00:50]} 44. Qe1 {[%clk 0:00:03]}  Bg3 {[%clk 0:00:47]} 45. Qg1 {[%clk 0:00:01]}  Nf2# {[%clk 0:00:33]} 0-1


[Site "https://www.chess.com"]